bitfinex/quotes_SOLUSD_20250201
["timestamp","ask_amount","ask_price","bid_price","bid_amount"]
[1738407864967,8.23039808,226.93,226.92,13.41184853]
[1738407869005,8.23039808,226.93,226.92,14.41184853]
[1738407872582,8.29339808,226.93,226.92,14.41184853]
[1738407877602,8.29339808,226.93,226.92,14.53733853]
[1738407877784,0.063,226.93,226.92,14.53733853]
[1738407877972,0.063,226.93,226.92,14.78831853]
[1738407878893,20.063,226.93,226.92,14.91380853]
[1738407879276,8.29339808,226.93,226.92,14.53733853]
[1738407881899,8.29339808,226.93,226.92,14.41184853]
[1738407884511,20.0,226.91,226.9,1.0]
[1738407884681,20.0,226.9,226.85,2.96]
[1738407884884,8.23039808,226.86,226.84,1.0]
[1738407885085,20.0,226.9,226.82,1.0]
[1738407885086,8.23039808,226.85,226.82,1.0]
[1738407885299,8.23039808,226.83,226.82,1.0]
[1738407885481,20.0,226.81,226.8,1.0]
[1738407885683,8.23039808,226.81,226.8,14.41184853]
[1738407887879,20.0,226.79,226.78,0.03]
[1738407888082,28.23039808,226.79,226.78,0.03]
[1738407889214,28.23039808,226.79,226.78,1.03]
[1738407889915,28.23039808,226.79,226.78,14.44184853]
[1738407890915,28.23039808,226.79,226.78,13.44184853]
[1738407893313,28.23039808,226.79,226.78,14.44184853]
[1738407893487,20.0,226.79,226.78,14.44184853]
[1738407893694,8.23039808,226.8,226.78,14.44184853]
[1738407893991,8.23039808,226.79,226.78,14.44184853]
[1738407898694,8.23039808,226.82,226.81,1.0]
[1738407898911,8.23039808,226.83,226.81,14.41184853]
[1738407899302,8.23039808,226.83,226.82,1.0]
[1738407899818,8.23039808,226.83,226.79,1.0]
[1738407900017,8.23039808,226.8,226.79,1.0]
[1738407900196,8.23039808,226.81,226.79,1.0]
[1738407901702,8.23039808,226.81,226.8,1.0]
[1738407902022,8.23039808,226.81,226.8,14.41184853]
[1738407902597,0.063,226.85,226.82,1.0]
[1738407902804,0.063,226.85,226.84,1.0]
[1738407904099,0.063,226.85,226.84,14.41184853]
[1738407904798,8.29339808,226.85,226.83,2.96]
[1738407905013,8.29339808,226.85,226.79,1.0]
[1738407905014,0.063,226.85,226.79,1.0]
[1738407905228,8.23039808,226.8,226.79,1.0]
[1738407906199,8.23039808,226.8,226.79,14.41184853]
[1738407907301,8.23039808,226.8,226.79,13.41184853]
[1738407907504,8.23039808,226.8,226.79,14.41184853]
[1738407908626,8.23039808,226.8,226.79,13.41184853]
[1738407909427,8.23039808,226.8,226.79,14.41184853]
[1738407909630,8.23039808,226.8,226.78,0.03]
[1738407909827,28.23039808,226.79,226.78,0.03]
[1738407912034,28.23039808,226.79,226.78,13.44184853]
[1738407913224,28.23039808,226.79,226.78,0.03]
[1738407914015,8.23039808,226.79,226.78,13.44184853]
[1738407915135,8.23039808,226.82,226.79,14.41184853]
[1738407915354,8.23039808,226.82,226.81,14.41184853]
[1738407916325,8.29339808,226.85,226.82,13.41184853]
[1738407916514,8.24525841,226.85,226.84,14.41184853]
[1738407917232,20.0,226.83,226.8,1.0]
[1738407917450,8.23039808,226.81,226.78,1.03]
[1738407917622,8.23039808,226.79,226.78,1.03]
[1738407918425,8.23039808,226.79,226.78,14.44184853]
[1738407919536,8.23039808,226.79,226.78,13.44184853]
[1738407919736,8.23039808,226.79,226.78,0.03]
[1738407921336,8.23039808,226.79,226.78,1.03]
[1738407922039,8.23039808,226.79,226.78,0.03]
[1738407922621,20.0,226.76,226.74,1.03]
[1738407922820,8.23039808,226.75,226.74,0.03]
[1738407927426,20.0,226.72,226.66,1.0]
[1738407927729,8.23039808,226.67,226.66,1.0]
[1738407929126,8.23039808,226.67,226.65,1.0]
[1738407929329,8.23039808,226.66,226.65,1.0]
[1738407932157,8.23039808,226.66,226.64,0.03]
[1738407932449,20.0,226.68,226.65,1.0]
[1738407932950,20.0,226.68,226.66,0.03]
[1738407933145,8.23039808,226.67,226.66,0.03]
[1738407934850,8.23039808,226.69,226.68,1.0]
[1738407935845,8.23039808,226.7,226.69,13.41184853]
[1738407936531,8.23039808,226.71,226.69,13.41184853]
[1738407936737,8.23039808,226.71,226.7,1.0]
[1738407941555,20.0,226.69,226.68,1.0]
[1738407941760,20.0,226.69,226.66,1.03]
[1738407941761,20.0,226.68,226.66,1.03]
[1738407941953,8.23039808,226.67,226.66,1.03]
[1738407943343,20.0,226.64,226.63,0.03]
[1738407943645,8.23039808,226.64,226.63,0.03]
[1738407944459,8.23039808,226.64,226.62,0.03]
[1738407944460,41.1519904,226.64,226.62,0.03]
[1738407944660,61.1519904,226.63,226.62,0.03]
[1738407945158,20.0,226.58,226.55,0.03]
[1738407945353,8.23039808,226.57,226.55,0.03]
[1738407945555,8.23039808,226.57,226.56,1.03]
[1738407945755,12.87384741,226.57,226.56,1.03]
[1738407946054,32.87384741,226.57,226.56,1.03]
[1738407946266,32.87384741,226.57,226.56,0.03]
[1738407948343,32.87384741,226.57,226.56,1.03]
[1738407948557,32.87384741,226.57,226.56,14.44184853]
[1738407950339,12.87384741,226.57,226.56,14.44184853]
[1738407950539,12.87384741,226.58,226.57,13.41184853]
[1738407950734,14.45794741,226.71,226.57,13.41184853]
[1738407950735,12.87384741,226.59,226.57,13.41184853]
[1738407950940,12.87384741,226.58,226.56,1.03]
[1738407952571,1.0,226.65,226.58,1.0]
[1738407952761,12.87384741,226.59,226.58,1.0]
[1738407954066,20.0,226.57,226.56,0.03]
[1738407954290,32.87384741,226.57,226.56,0.03]
[1738407961921,32.87384741,226.57,226.56,1.03]
[1738407962343,12.87384741,226.57,226.56,1.03]
[1738407962949,32.87384741,226.57,226.56,1.03]
[1738407963524,12.87384741,226.57,226.56,14.44184853]
[1738407963709,12.93684741,226.6,226.57,14.41184853]
[1738407963908,12.93684741,226.6,226.58,13.41184853]
[1738407964108,12.93684741,226.6,226.59,1.0]
[1738407964331,12.93684741,226.6,226.59,14.41184853]
[1738407964529,0.063,226.6,226.59,14.41184853]
[1738407966221,12.93684741,226.6,226.59,14.41184853]
[1738407966823,12.93684741,226.6,226.59,1.0]
[1738407967136,12.93684741,226.6,226.59,0.95186032]
[1738407969458,0.063,226.6,226.59,0.95186032]
[1738407970116,12.93684741,226.6,226.59,0.95186032]
[1738407971237,20.0,226.57,226.56,0.98186032]
[1738407971411,32.87384741,226.57,226.56,0.03]
[1738407971614,32.87384741,226.57,226.56,0.98186032]
[1738407971823,28.24029594,226.57,226.56,0.98186032]
[1738407972224,28.24029594,226.57,226.56,0.03]
[1738407972827,28.24029594,226.57,226.56,0.98186032]
[1738407973831,32.87197169,226.57,226.56,0.98186032]
[1738407975043,32.87197169,226.57,226.56,0.03]
[1738407975250,32.87197169,226.57,226.56,0.98186032]
[1738407976519,32.87197169,226.57,226.56,0.03]
[1738407978941,32.87197169,226.57,226.56,0.98186032]
[1738407979619,32.87197169,226.57,226.56,14.39370885]
[1738407979823,0.063,226.6,226.58,14.36370885]
[1738407979824,12.87197169,226.59,226.58,14.36370885]
[1738407980260,12.93497169,226.6,226.59,13.41184853]
[1738407980426,0.063,226.6,226.59,13.41184853]
[1738407980719,0.063,226.6,226.58,0.95186032]
[1738407981122,0.063,226.6,226.59,13.78831853]
[1738407983638,12.93497169,226.6,226.59,13.41184853]
[1738407984444,0.063,226.6,226.59,13.41184853]
[1738407987258,0.063,226.6,226.59,13.78831853]
[1738407989583,0.063,226.6,226.59,13.91380853]
[1738407989874,0.063,226.6,226.59,26.78578022]
[1738407992268,12.87197169,226.73,226.7,14.36370885]
[1738407992847,12.87197169,226.73,226.71,13.41184853]
[1738407993049,12.87197169,226.73,226.72,0.95186032]
[1738407993265,12.93497169,226.74,226.73,13.41184853]
[1738407993846,0.063,226.74,226.72,0.95186032]
[1738407994155,0.063,226.74,226.73,13.41184853]
[1738407994347,12.93497169,226.74,226.73,13.41184853]
[1738407995340,25.80694338,226.74,226.72,0.95186032]
[1738407995540,25.74394338,226.73,226.7,0.95186032]
[1738407995773,25.74394338,226.71,226.7,14.36370885]
[1738407998070,20.0,226.68,226.65,0.95186032]
[1738407998276,12.87197169,226.66,226.65,0.95186032]
[1738407998580,12.87197169,226.66,226.65,14.36370885]
[1738407999578,12.87197169,226.66,226.63,0.95186032]
[1738407999878,12.87197169,226.64,226.6,0.95186032]
[1738408000079,12.87197169,226.61,226.6,14.36370885]
[1738408000276,12.87197169,226.61,226.6,19.63651436]
[1738408000584,25.74394338,226.61,226.6,19.63651436]
[1738408000784,25.74394338,226.61,226.56,0.98186032]
[1738408000986,12.87197169,226.6,226.59,0.95186032]
[1738408001474,12.87197169,226.6,226.56,0.98186032]
[1738408001777,12.87197169,226.6,226.58,0.95186032]
[1738408002355,12.87197169,226.59,226.58,0.95186032]
[1738408002576,12.87197169,226.59,226.58,14.36370885]
[1738408006781,12.87197169,226.59,226.58,0.95186032]
[1738408007085,12.87197169,226.59,226.56,0.98186032]
[1738408007262,12.87197169,226.57,226.56,14.39370885]
[1738408007582,20.0,226.55,226.54,0.95186032]
[1738408007769,32.87197169,226.55,226.54,0.95186032]
[1738408007956,25.74394338,226.51,226.5,3.393112]
[1738408008684,12.87197169,226.51,226.5,3.393112]
[1738408009278,25.74394338,226.51,226.5,3.393112]
[1738408009869,12.87197169,226.51,226.5,3.393112]
[1738408012480,25.74394338,226.51,226.5,3.393112]
[1738408013465,12.87197169,226.46,226.45,100.0]
[1738408017764,12.87197169,226.46,226.45,100.03]
[1738408023501,12.87197169,226.46,226.45,113.44184853]
[1738408025901,8.24487301,226.46,226.45,113.44184853]
[1738408029804,8.24487301,226.48,226.46,13.41184853]
[1738408030006,8.30787301,226.5,226.46,13.41184853]
[1738408030393,8.24487301,226.49,226.46,13.41184853]
[1738408030997,8.24487301,226.48,226.46,13.41184853]
[1738408031906,8.24487301,226.49,226.46,13.41184853]
[1738408032693,8.24487301,226.48,226.46,13.41184853]
[1738408033095,8.24487301,226.47,226.46,13.78831853]
[1738408033906,8.24487301,226.48,226.46,13.78831853]
[1738408034114,8.24487301,226.49,226.46,13.78831853]
[1738408035099,8.24487301,226.49,226.47,0.50196]
[1738408035286,8.30787301,226.5,226.48,13.66282853]
[1738408036006,8.24487301,226.49,226.48,0.37647]
[1738408038606,8.24487301,226.49,226.46,13.41184853]
[1738408038806,8.24487301,226.47,226.46,13.41184853]
[1738408046123,8.24487301,226.47,226.46,16.04904432]
[1738408046726,8.24487301,226.47,226.46,21.32412416]
[1738408047923,8.24487301,226.47,226.46,18.68692837]
[1738408048124,8.24487301,226.47,226.46,13.41184853]
[1738408053444,8.24487301,226.48,226.46,13.41184853]
[1738408053748,8.24487301,226.47,226.46,16.05476867]
[1738408054533,8.24487301,226.47,226.46,21.34056591]
[1738408056228,8.24487301,226.47,226.46,16.05476867]
[1738408056844,8.24487301,226.47,226.46,16.08476867]
[1738408057545,8.24487301,226.47,226.46,13.44184853]
[1738408060757,8.24487301,226.47,226.46,0.03]
[1738408062873,8.24487301,226.47,226.46,13.44184853]
[1738408071759,8.24487301,226.47,226.46,16.08606569]
[1738408078067,8.24487301,226.48,226.46,20.50176569]
[1738408078264,8.30787301,226.5,226.46,20.50176569]
[1738408078470,0.063,226.5,226.46,20.50176569]
[1738408079173,8.30787301,226.5,226.46,20.50176569]
[1738408079350,8.30787301,226.5,226.47,2.64421716]
[1738408079556,8.30787301,226.5,226.48,13.41184853]
[1738408080956,8.24487301,226.49,226.48,13.41184853]
[1738408081579,8.24487301,226.49,226.46,18.23401853]
[1738408081867,8.24487301,226.48,226.46,18.23401853]
[1738408082171,8.24487301,226.49,226.46,18.23401853]
[1738408082365,8.24487301,226.48,226.46,18.23401853]
[1738408082568,8.24487301,226.48,226.47,16.05678348]
[1738408085873,8.24487301,226.48,226.47,13.41184853]
[1738408086076,8.24487301,226.48,226.46,0.03]
[1738408086261,8.24487301,226.47,226.46,0.03]
[1738408091700,8.24487301,226.47,226.46,13.44184853]
[1738408094278,8.24487301,226.49,226.46,17.85754853]
[1738408094980,8.24487301,226.47,226.46,13.44184853]
[1738408098894,8.24487301,226.48,226.46,13.44184853]
[1738408099083,8.24487301,226.47,226.46,13.44184853]
[1738408103099,8.24487301,226.47,226.46,0.03]
[1738408106505,8.24487301,226.47,226.46,13.44184853]
[1738408109394,8.24487301,226.48,226.46,13.44184853]
[1738408109607,8.24487301,226.49,226.46,13.44184853]
[1738408109906,8.24487301,226.48,226.46,13.44184853]
[1738408110106,8.24487301,226.47,226.46,13.44184853]
[1738408119707,0.063,226.5,226.47,0.25098]
[1738408120021,0.063,226.5,226.48,13.41184853]
[1738408120516,0.063,226.5,226.49,13.78831853]
[1738408122723,0.063,226.5,226.49,18.32900853]
[1738408123024,0.063,226.5,226.49,27.23594983]
[1738408123330,0.063,226.5,226.49,28.23594983]
[1738408124544,0.063,226.54,226.52,0.50196]
[1738408124720,0.063,226.54,226.53,13.78831853]
[1738408125840,0.063,226.54,226.53,18.20271853]
[1738408127141,0.063,226.54,226.53,18.32820853]
[1738408127541,0.063,226.54,226.53,13.91380853]
[1738408127725,8.30787301,226.54,226.46,0.03]
[1738408127927,8.24487301,226.47,226.46,0.03]
[1738408128235,8.24487301,226.48,226.46,0.28098]
[1738408128615,8.24487301,226.49,226.46,13.69282853]
[1738408128826,8.24487301,226.5,226.47,18.32930853]
[1738408129031,8.24487301,226.52,226.47,18.32930853]
[1738408130643,8.24487301,226.51,226.47,18.32930853]
[1738408131144,0.063,226.5,226.47,18.32930853]
[1738408132442,0.063,226.5,226.49,13.91380853]
[1738408132637,0.063,226.54,226.51,13.91380853]
[1738408132832,0.063,226.54,226.53,22.15868154]
[1738408133230,0.063,226.54,226.53,22.82055826]
[1738408133547,0.063,226.54,226.53,23.82055826]
[1738408134343,0.063,226.54,226.53,28.23495826]
[1738408134840,0.063,226.54,226.53,27.23495826]
[1738408135561,0.063,226.54,226.53,28.23495826]
[1738408137124,8.30787301,226.54,226.53,0.66187672]
[1738408137327,8.30787301,226.54,226.46,6.91195915]
[1738408137520,8.24487301,226.5,226.47,13.41184853]
[1738408137719,8.24487301,226.5,226.49,13.41184853]
[1738408138125,8.24487301,226.52,226.49,13.41184853]
[1738408139754,12.87483705,226.51,226.49,13.41184853]
[1738408140837,12.87483705,226.51,226.46,0.03]
[1738408141049,12.87483705,226.49,226.46,0.03]
[1738408141459,12.87483705,226.49,226.46,13.44184853]
[1738408142062,12.87483705,226.5,226.47,0.37647]
[1738408142248,12.87483705,226.52,226.47,0.37647]
[1738408142748,12.87483705,226.53,226.47,0.37647]
[1738408142949,12.87483705,226.52,226.47,0.37647]
[1738408143250,12.93783705,226.52,226.47,0.37647]
[1738408143557,12.87483705,226.51,226.47,4.79197]
[1738408144264,12.87483705,226.5,226.47,0.37647]
[1738408145365,12.87483705,226.5,226.46,13.44184853]
[1738408145552,12.87483705,226.47,226.46,13.44184853]
[1738408148976,12.87483705,226.48,226.46,13.44184853]
[1738408149383,12.87483705,226.5,226.46,13.44184853]
[1738408149959,12.87483705,226.49,226.46,13.44184853]
[1738408150149,12.87483705,226.48,226.46,13.44184853]
[1738408151843,12.87483705,226.49,226.46,13.44184853]
[1738408152055,12.87483705,226.48,226.46,13.44184853]
[1738408153173,12.87483705,226.49,226.46,13.44184853]
[1738408154165,12.87483705,226.51,226.46,13.44184853]
[1738408154859,0.063,226.52,226.48,13.41184853]
[1738408155346,12.93783705,226.52,226.48,13.41184853]
[1738408157171,12.93783705,226.52,226.48,17.82714853]
[1738408158765,0.063,226.52,226.5,13.41184853]
[1738408160148,0.063,226.52,226.51,0.37647]
[1738408160353,0.063,226.52,226.51,13.91380853]
[1738408160767,0.063,226.52,226.51,18.32860853]
[1738408160949,0.063,226.52,226.51,31.86541862]
[1738408161150,0.063,226.52,226.51,34.53161862]
[1738408161752,0.063,226.52,226.51,28.89056181]
[1738408161960,0.063,226.54,226.53,0.50196]
[1738408162280,0.063,226.54,226.53,26.76950298]
[1738408163175,0.063,226.54,226.53,31.18390298]
[1738408163176,0.0001,226.54,226.53,31.18390298]
[1738408166690,8.23378024,226.63,226.56,20.50196]
[1738408166990,8.23378024,226.64,226.6,13.66282853]
[1738408167286,8.23378024,226.64,226.62,0.25098]
[1738408167781,8.23378024,226.64,226.62,13.66282853]
[1738408168656,8.23378024,226.63,226.62,0.25098]
[1738408169161,8.23378024,226.64,226.62,13.66282853]
[1738408172394,8.23378024,226.63,226.62,13.66282853]
[1738408174202,8.23378024,226.66,226.65,0.12549]
[1738408176902,8.23378024,226.71,226.66,18.32560853]
[1738408177100,8.23378024,226.71,226.7,13.78831853]
[1738408177406,8.23378024,226.71,226.66,4.4118]
[1738408177605,8.23378024,226.7,226.66,4.4118]
[1738408178186,8.23378024,226.69,226.67,13.91380853]
[1738408179709,8.23378024,226.7,226.67,13.91380853]
[1738408181907,8.23378024,226.71,226.67,13.91380853]
[1738408182922,8.23378024,226.7,226.67,13.91380853]
[1738408184310,8.18560459,226.7,226.67,13.91380853]
[1738408188224,8.23378024,226.68,226.62,4.4125]
[1738408188608,8.23378024,226.68,226.66,13.66282853]
[1738408189212,0.063,226.71,226.7,0.25098]
[1738408189522,0.063,226.71,226.7,13.91380853]
[1738408193804,0.063,226.71,226.7,18.32490853]
[1738408194947,0.063,226.71,226.7,26.55868877]
[1738408195226,0.063,226.74,226.72,13.66282853]
[1738408195432,0.063,226.74,226.72,14.32415721]
[1738408197611,0.063,226.74,226.72,18.73485721]
[1738408197936,0.063,226.74,226.71,0.25098]
[1738408197937,8.29678024,226.73,226.66,5.07305612]
[1738408198109,8.23378024,226.7,226.68,2.96]
[1738408198310,8.23378024,226.71,226.69,13.66282853]
[1738408198834,8.23378024,226.7,226.69,13.66282853]
[1738408199030,8.23378024,226.7,226.69,0.25098]
[1738408201355,8.23378024,226.7,226.67,2.99]
[1738408201652,8.23378024,226.68,226.67,2.99]
[1738408201847,8.23378024,226.68,226.67,16.90380853]
[1738408202448,8.23378024,226.69,226.68,13.66282853]
[1738408202939,8.23378024,226.7,226.68,13.66282853]
[1738408203152,8.23378024,226.7,226.68,18.07412853]
[1738408203625,8.23378024,226.7,226.68,13.66282853]
[1738408204253,8.23378024,226.71,226.68,18.07412853]
[1738408205856,8.29678024,226.73,226.7,0.25098]
[1738408206035,0.063,226.73,226.72,0.50196]
[1738408206236,0.063,226.73,226.72,13.91380853]
[1738408206433,0.063,226.73,226.72,22.14758877]
[1738408206651,0.063,226.77,226.76,0.25098]
[1738408206941,0.063,226.77,226.76,14.44954864]
[1738408207140,0.063,226.77,226.76,14.57503864]
[1738408207356,0.063,226.77,226.76,22.80881888]
[1738408207864,0.063,226.77,226.76,28.21871888]
[1738408209029,0.063,226.82,226.79,0.25098]
[1738408209355,0.063,226.82,226.81,0.12549]
[1738408209734,0.063,226.82,226.81,13.66282853]
[1738408209935,0.063,226.82,226.81,22.14758877]
[1738408210744,0.063,226.83,226.82,14.91380853]
[1738408211059,0.063,226.83,226.82,23.80857101]
[1738408211459,0.063,226.83,226.82,28.21727101]
[1738408211658,0.063,226.83,226.82,30.73097101]
[1738408212335,0.063,226.83,226.82,63.66609197]
[1738408212868,0.063,226.83,226.82,93.66609197]
[1738408212869,0.0001,226.83,226.82,93.66609197]
[1738408213033,0.0001,226.83,226.82,93.00510973]
[1738408213435,0.0001,226.83,226.82,227.70510973]
[1738408213871,0.0001,226.83,226.82,212.18364981]
[1738408214847,0.0001,226.83,226.82,199.35992917]
[1738408215765,0.0001,226.83,226.82,169.35992917]
[1738408215972,0.0001,226.83,226.82,18.32250853]
[1738408216272,0.0001,226.83,226.82,3.08549]
[1738408216473,0.0001,226.83,226.82,16.87380853]
[1738408216858,0.0001,226.83,226.82,17.53485646]
[1738408217572,0.0001,226.83,226.82,18.53485646]
[1738408218191,0.0001,226.83,226.82,31.3585771]
[1738408218571,0.0001,226.83,226.82,30.3585771]
[1738408218962,0.0001,226.83,226.82,17.53485646]
[1738408219162,0.0001,226.83,226.82,16.87380853]
[1738408219361,0.0001,226.83,226.82,16.74831853]
[1738408219570,0.0001,226.83,226.82,16.87380853]
[1738408219952,0.0001,226.83,226.82,13.91380853]
[1738408220173,0.0001,226.83,226.82,16.87380853]
[1738408220775,0.0001,226.83,226.82,16.93680853]
[1738408221678,0.0001,226.83,226.82,16.81131853]
[1738408221863,12.82382064,226.83,226.82,13.47484853]
[1738408223559,31.71354128,226.83,226.82,0.063]
[1738408223777,33.22914128,226.83,226.82,0.063]
[1738408224357,20.40542064,226.83,226.82,0.063]
[1738408231470,33.22914128,226.83,226.82,0.063]
[1738408232197,20.40542064,226.83,226.82,0.063]
[1738408233393,33.22914128,226.83,226.82,0.063]
[1738408237091,12.82382064,226.83,226.82,0.063]
[1738408242207,25.64754128,226.83,226.82,0.063]
[1738408243286,12.82382064,226.83,226.82,0.063]
[1738408247780,8.21919571,226.83,226.82,0.063]
[1738408260912,0.0001,226.83,226.82,4.59719]
[1738408261117,0.0001,226.83,226.82,18.00903853]
[1738408262332,0.0001,226.83,226.82,18.26001853]
[1738408262510,0.0001,226.83,226.82,28.90703451]
[1738408268232,0.0001,226.83,226.82,29.90703451]
[1738408269125,0.0001,226.83,226.82,28.90703451]
[1738408269921,0.01486033,226.85,226.84,20.50196]
[1738408270130,0.01486033,226.85,226.84,45.75386431]
[1738408271203,0.01486033,226.85,226.84,50.16216431]
[1738408272015,0.063,226.87,226.85,13.91380853]
[1738408272217,0.063,226.87,226.86,22.79381054]
[1738408273098,0.063,226.87,226.86,27.20181054]
[1738408274424,0.063,226.93,226.92,0.12549]
[1738408274636,0.063,226.93,226.92,14.449118]
[1738408274821,0.063,226.93,226.92,13.66282853]
[1738408275024,0.063,226.93,226.92,13.41184853]
[1738408275421,8.28209571,226.93,226.92,13.41184853]
[1738408277615,41.15847855,226.93,226.92,13.41184853]
[1738408277833,41.15847855,226.93,226.85,3.21098]
[1738408278140,8.21909571,226.86,226.82,3.023]
[1738408278338,8.21909571,226.85,226.83,13.66282853]
[1738408278528,8.21909571,226.84,226.82,0.063]
[1738408278735,8.21909571,226.83,226.82,0.063]
[1738408279125,8.21909571,226.84,226.82,0.063]
[1738408279519,8.21909571,226.86,226.82,0.063]
[1738408280439,8.21909571,226.87,226.83,13.78831853]
[1738408280629,8.21909571,226.88,226.83,13.78831853]
[1738408281452,8.21909571,226.89,226.84,13.41184853]
[1738408281746,8.28209571,226.93,226.87,13.66282853]
[1738408281931,8.28209571,226.93,226.89,0.25098]
[1738408282136,8.28209571,226.93,226.89,13.66282853]
[1738408282515,8.28209571,226.93,226.89,0.25098]
[1738408282716,0.063,226.93,226.89,0.25098]
[1738408283339,0.063,226.93,226.91,13.66282853]
[1738408283521,0.063,226.93,226.91,18.06972853]
[1738408284143,0.063,226.93,226.92,0.12549]
[1738408286834,0.063,226.93,226.92,13.91380853]
[1738408287012,0.063,226.93,226.92,25.75374433]
[1738408289035,0.063,226.94,226.93,18.32040853]
[1738408289242,0.063,226.94,226.93,26.53950424]
[1738408289619,0.063,226.94,226.93,29.08780424]
[1738408289819,0.063,226.94,226.93,28.08780424]
[1738408290645,0.063,226.94,226.93,29.08780424]
[1738408292031,0.063,226.94,226.93,28.08780424]
[1738408292229,0.063,226.94,226.93,29.08780424]
[1738408295149,0.063,226.94,226.93,30.08780424]
[1738408295743,0.063,226.94,226.93,29.08780424]
[1738408295947,0.063,226.94,226.93,30.08780424]
[1738408297847,0.063,226.96,226.95,20.50196]
[1738408298148,0.063,226.96,226.95,42.79352351]
[1738408298752,0.063,226.96,226.95,47.19972351]
[1738408299546,0.063,226.99,226.98,0.12549]
[1738408299752,0.063,226.99,226.98,22.79345255]
[1738408300730,0.063,226.99,226.98,27.19905255]
[1738408305658,0.063,226.99,226.98,13.91380853]
[1738408318877,0.063,226.99,226.98,22.13290424]
[1738408319167,0.063,226.99,226.98,26.53850424]
[1738408319372,0.063,226.99,226.98,18.31940853]
[1738408321388,0.063,226.99,226.98,27.19916619]
[1738408321773,0.063,226.99,226.98,26.53850424]
[1738408322095,0.063,226.99,226.98,18.31940853]
[1738408329178,0.063,226.99,226.98,26.53850424]
[1738408335789,0.063,226.99,226.98,16.72831853]
[1738408337005,0.063,226.99,226.98,13.41184853]
[1738408338186,8.28209571,226.99,226.98,13.41184853]
[1738408338905,0.063,226.99,226.98,13.41184853]
[1738408339083,0.063,226.99,226.98,13.66282853]
[1738408339281,0.063,226.99,226.98,13.78831853]
[1738408342583,0.063,226.99,226.98,13.91380853]
[1738408342790,0.063,226.99,226.98,22.13290424]
[1738408346415,0.063,227.03,226.99,18.31920853]
[1738408346738,0.063,227.03,227.02,22.00741424]
[1738408347791,0.063,227.03,227.02,26.41221424]
[1738408352842,0.063,227.03,227.02,18.19311853]
[1738408354734,0.063,227.03,227.02,26.41221424]
[1738408357862,0.063,227.03,227.02,26.53770424]
[1738408358077,0.03,227.06,227.05,20.37647]
[1738408358363,0.03,227.06,227.05,42.79329221]
[1738408360652,0.03,227.06,227.05,47.19759221]
[1738408362258,0.063,227.08,227.06,13.91380853]
[1738408362457,0.063,227.08,227.07,30.13711775]
[1738408364056,0.063,227.08,227.07,29.47680424]
[1738408364942,0.063,227.08,227.07,18.31770853]
[1738408365150,0.063,227.08,227.07,13.41184853]
[1738408368279,0.063,227.08,227.07,18.31770853]
[1738408370293,0.063,227.08,227.07,26.53680424]
[1738408379999,0.063,227.08,227.07,18.31770853]
[1738408380878,0.063,227.08,227.07,21.25770853]
[1738408382181,0.063,227.08,227.07,29.47680424]
[1738408384612,0.063,227.09,227.08,13.91380853]
[1738408384815,0.063,227.09,227.08,22.13290424]
[1738408385309,0.063,227.09,227.08,22.7931919]
[1738408387825,0.063,227.09,227.08,23.90425701]
[1738408388326,0.063,227.09,227.08,22.13290424]
[1738408391029,0.063,227.09,227.08,13.91380853]
[1738408397214,0.063,227.09,227.08,18.31750853]
[1738408398242,0.063,227.09,227.08,26.53660424]
[1738408404636,0.03,227.16,227.12,13.91380853]
[1738408404938,0.03,227.17,227.16,13.91380853]
[1738408405121,0.03,227.17,227.16,22.79293894]
[1738408406042,0.03,227.17,227.16,27.19503894]
[1738408413124,0.0001,227.17,227.16,27.19503894]
[1738408414845,0.0001,227.17,227.16,28.19503894]
[1738408415865,0.03,227.22,227.2,13.91380853]
[1738408416028,0.03,227.22,227.21,25.60735749]
[1738408417259,0.03,227.22,227.21,30.00855749]
[1738408420653,0.03,227.22,227.21,30.13404749]
[1738408426670,0.03,227.22,227.21,29.47410424]
[1738408429675,0.03,227.22,227.21,30.13404132]
[1738408432783,0.03,227.26,227.25,20.37647]
[1738408433079,0.03,227.26,227.25,42.00741424]